fUST/lending_fUST_20250105
["ID","MTS","AMOUNT","RATE_DAILY","PERIOD"]
[347657240,1736026110768,160.0,0.00021494,120]
[347657241,1736026112412,1140.95387476,0.0002,120]
[347657242,1736026114590,429.4629973,0.00025,120]
[347657243,1736026114621,1314.04910853,0.00025,120]
[347657248,1736026230797,160.0,0.0002416,120]
[347657290,1736026232461,-265.80723891,0.00017165,2]
[347657292,1736026232471,-300.0,0.00017622,2]
[347657294,1736026232481,-360.54576109,0.00017623,2]
[347657296,1736026232493,-14021.113048,0.00017623,2]
[347657301,1736026232526,-487.77778045,0.00017623,2]
[347657315,1736026238423,-7545.44466278,0.00017623,2]
[347657325,1736026240486,-502.89526421,0.00017623,2]
[347657335,1736026290713,160.0,0.00022209,120]
[347657337,1736026332217,983.0298161,0.00025,120]
[347657338,1736026351276,160.0,0.00022779,120]
[347657339,1736026410713,160.0,0.00023359,120]
[347657340,1736026471325,160.0,0.00022355,120]
[347657342,1736026530785,160.0,0.00023762,120]
[347657343,1736026590739,160.0,0.00024724,120]
[347657346,1736026710845,160.0,0.00022836,120]
[347657353,1736026770757,160.0,0.00022507,120]
[347657357,1736026807425,159.27343,0.00013973,2]
[347657358,1736026830727,160.0,0.00022173,120]
[347657359,1736026891392,160.0,0.00023479,120]
[347657360,1736026950927,160.0,0.00022671,120]
[347657361,1736027010747,160.0,0.00023069,120]
[347657362,1736027070878,160.0,0.00022204,120]
[347657365,1736027130743,160.0,0.00022692,120]
[347657366,1736027190715,160.0,0.0002326,120]
[347657367,1736027251340,160.0,0.00023678,120]
[347657368,1736027310820,160.0,0.00022254,120]
[347657371,1736027370723,160.0,0.00022193,120]
[347657373,1736027430755,160.0,0.00022197,120]
[347657422,1736027432687,-500.0,0.00017689,2]
[347657424,1736027432696,-394.0,0.00017884,2]
[347657426,1736027432705,-246.45720833,0.0001791,2]
[347657429,1736027432715,-300.0,0.00017951,2]
[347657431,1736027432725,-429.83726506,0.00017952,2]
[347657434,1736027432748,-462.5166,0.00017952,2]
[347657436,1736027432760,-1547.60122931,0.00017952,2]
[347657442,1736027432806,-506.33737312,0.00017952,2]
[347657491,1736027438405,-6300.72851847,0.00017952,2]
[347657492,1736027438463,-15604.17610018,0.00017952,2]
[347657493,1736027438475,-48.80291386,0.00017952,2]
[347657494,1736027438484,-1002.75846979,0.00018,2]
[347657495,1736027438495,-2339.89789207,0.00018,2]
[347657496,1736027438506,-16775.00000005,0.00018,2]
[347657497,1736027438517,-950.00000017,0.00018,2]
[347657498,1736027438528,-862.04420907,0.00018,2]
[347657540,1736027491316,160.0,0.00023586,120]
[347657541,1736027551345,160.0,0.0002239,120]
[347657542,1736027610726,160.0,0.00021961,120]
[347657543,1736027671511,160.0,0.00022852,120]
[347657544,1736027680711,163.560437,0.00013973,2]
[347657546,1736027730743,160.0,0.00021447,120]
[347657547,1736027790779,160.0,0.00022474,120]
[347657548,1736027850810,160.0,0.0002288,120]
[347657549,1736027911352,160.0,0.00021898,120]
[347657550,1736027970733,160.0,0.0002288,120]
[347657551,1736028030744,160.0,0.00023412,120]
[347657552,1736028090783,160.0,0.00024368,120]
[347657553,1736028150795,160.0,0.00023064,120]
[347657555,1736028210760,160.0,0.00022346,120]
[347657556,1736028270737,160.0,0.00023811,120]
[347657558,1736028332144,160.0,0.00022312,120]
[347657559,1736028390776,160.0,0.00022913,120]
[347657560,1736028450756,160.0,0.00023387,120]
[347657561,1736028510848,160.0,0.00023108,120]
[347657562,1736028586685,91.97635076,0.00013973,2]
[347657563,1736028586720,75.22804224,0.00013973,2]
[347658031,1736028638727,-394.0,0.00017402,2]
[347658032,1736028638737,-215.681149,0.00017571,2]
[347658033,1736028638747,-150.0,0.00017922,2]
[347658034,1736028638757,-151.601,0.00017922,2]
[347658035,1736028638768,-4903.36430492,0.00018,2]
[347658036,1736028638778,-300.0,0.00018079,2]
[347658037,1736028638788,-1422.40388236,0.00018079,2]
[347658038,1736028638805,-891.85929846,0.00018079,2]
[347658058,1736028640771,-1944.49,0.00018079,2]
[347658097,1736028646943,-4350.24681918,0.00018079,2]
[347658098,1736028646953,-5395.9904246,0.0001808,2]
[347658111,1736029401562,183.005755,0.0002411,120]
[347658112,1736029467320,178.844174,0.00013973,2]
[347658114,1736029608146,-300.0,0.00016438,2]
[347658115,1736029608168,-215.65005728,0.00016838,2]
[347658116,1736029608190,-251.59164741,0.00016838,2]
[347658117,1736029608212,-1053.87736023,0.00016841,2]
[347658118,1736029608236,-510.33348642,0.00016937,2]
[347658119,1736029608257,-400.0,0.00016937,2]
[347658120,1736029608281,-500.0,0.00016937,2]
[347658121,1736029608305,-510.33348642,0.00016937,2]
[347658122,1736029608330,-500.0,0.00016937,2]
[347658123,1736029608352,-500.0,0.00016937,2]
[347658124,1736029608376,-510.33348642,0.00016937,2]
[347658125,1736029608399,-500.0,0.00016937,2]
[347658126,1736029608424,-500.0,0.00016937,2]
[347658127,1736029608449,-500.0,0.00016937,2]
[347658128,1736029608472,-510.33348642,0.00016937,2]
[347658129,1736029608495,-500.0,0.00016937,2]
[347658130,1736029608518,-301.87579795,0.00016937,2]
[347658131,1736029608542,-510.33348642,0.00016937,2]
[347658132,1736029608564,-457.67300464,0.00016937,2]
[347658133,1736029608588,-510.33348642,0.00016937,2]
[347658134,1736029608612,-500.0,0.00016937,2]
[347658135,1736029608635,-510.33348642,0.00016937,2]
[347658136,1736029608658,-500.0,0.00016937,2]
[347658137,1736029608681,-510.33348642,0.00016937,2]
[347658138,1736029608704,-370.32511213,0.00016937,2]
[347658185,1736029831922,-237.91624,0.00015776,2]
[347658186,1736029831932,-237.91624,0.00015935,2]
[347658187,1736029831941,-4442.47872,0.00015937,2]
[347658188,1736029832004,-66.7770975,0.00015937,2]
[347658189,1736029832013,-188.69380012,0.00016835,2]
[347658190,1736029832023,-843.10188816,0.00016837,2]
[347658191,1736029832032,-300.0,0.00016934,2]
[347658193,1736029832041,-14459.21598268,0.00016935,2]
[347658195,1736029832051,-128057.06665883,0.00016935,2]
[347658197,1736029832060,-500.0,0.00016935,2]
[347658199,1736029832069,-632.14055593,0.00016935,2]
[347658201,1736029832080,-500.0,0.00016935,2]
[347658203,1736029832089,-500.0,0.00016935,2]
[347658205,1736029832098,-632.14055593,0.00016935,2]
[347658207,1736029832107,-500.0,0.00016935,2]
[347658209,1736029832117,-500.0,0.00016935,2]
[347658211,1736029832126,-632.14055593,0.00016935,2]
[347658213,1736029832136,-500.0,0.00016935,2]
[347658215,1736029832145,-482.59166656,0.00016935,2]
[347658217,1736029832155,-632.14055593,0.00016935,2]
[347658219,1736029832165,-500.0,0.00016935,2]
[347658221,1736029832174,-500.0,0.00016935,2]
[347658223,1736029832184,-562.47469955,0.00016935,2]
[347658225,1736029832194,-632.14055593,0.00016935,2]
[347658227,1736029832204,-500.0,0.00016935,2]
[347658229,1736029832214,-500.0,0.00016935,2]
[347658232,1736029832224,-632.14055593,0.00016935,2]
[347658234,1736029832233,-500.0,0.00016935,2]
[347658236,1736029832243,-500.0,0.00016935,2]
[347658238,1736029832252,-632.14055593,0.00016935,2]
[347658240,1736029832261,-500.0,0.00016935,2]
[347658242,1736029832271,-632.14055593,0.00016935,2]
[347658244,1736029832280,-632.14055593,0.00016935,2]
[347658246,1736029832289,-500.0,0.00016935,2]
[347658248,1736029832298,-500.0,0.00016935,2]
[347658250,1736029832307,-632.14055593,0.00016935,2]
[347658252,1736029832317,-500.0,0.00016935,2]
[347658254,1736029832326,-500.0,0.00016935,2]
[347658256,1736029832335,-632.14055593,0.00016935,2]
[347658258,1736029832344,-632.14055593,0.00016935,2]
[347658260,1736029832353,-500.0,0.00016935,2]
[347658262,1736029832363,-632.14055593,0.00016935,2]
[347658264,1736029832372,-632.14055593,0.00016935,2]
[347658266,1736029832381,-500.0,0.00016935,2]
[347658268,1736029832390,-632.14055593,0.00016935,2]
[347658270,1736029832400,-632.14055593,0.00016935,2]
[347658272,1736029832410,-632.14055593,0.00016935,2]
[347658274,1736029832419,-632.14055593,0.00016935,2]
[347658276,1736029832429,-632.14055593,0.00016935,2]
[347658278,1736029832438,-632.14055593,0.00016935,2]
[347658280,1736029832447,-632.14055593,0.00016935,2]
[347658282,1736029832457,-632.14055593,0.00016935,2]
[347658284,1736029832466,-632.14055593,0.00016935,2]
[347658286,1736029832475,-632.14055593,0.00016935,2]
[347658288,1736029832485,-632.14055593,0.00016935,2]
[347658290,1736029832496,-632.14055593,0.00016935,2]
[347658292,1736029832505,-632.14055593,0.00016935,2]
[347658294,1736029832515,-632.14055593,0.00016935,2]
[347658296,1736029832525,-632.14055593,0.00016935,2]
[347658298,1736029832535,-632.14055593,0.00016935,2]
[347658301,1736029832546,-632.14055593,0.00016935,2]
[347658303,1736029832558,-632.14055593,0.00016935,2]
[347658305,1736029832569,-632.14055593,0.00016935,2]
[347658307,1736029832580,-632.14055593,0.00016935,2]
[347658309,1736029832590,-632.14055593,0.00016935,2]
[347658311,1736029832600,-632.14055593,0.00016935,2]
[347658313,1736029832610,-632.14055593,0.00016935,2]
[347658315,1736029832620,-632.14055593,0.00016935,2]
[347658317,1736029832629,-632.14055593,0.00016935,2]
[347658319,1736029832640,-632.14055593,0.00016935,2]
[347658322,1736029832650,-632.14055593,0.00016935,2]
[347658324,1736029832659,-632.14055593,0.00016935,2]
[347658326,1736029832669,-632.14055593,0.00016935,2]
[347658328,1736029832679,-632.14055593,0.00016935,2]
[347658330,1736029832689,-632.14055593,0.00016935,2]
[347658332,1736029832698,-632.14055593,0.00016935,2]
[347658334,1736029832708,-632.14055593,0.00016935,2]
[347658336,1736029832718,-632.14055593,0.00016935,2]
[347658338,1736029832727,-632.14055593,0.00016935,2]
[347658340,1736029832738,-632.14055593,0.00016935,2]
[347658342,1736029832747,-632.14055593,0.00016935,2]
[347658344,1736029832757,-632.14055593,0.00016935,2]
[347658347,1736029832767,-632.14055593,0.00016935,2]
[347658348,1736029832777,-632.14055593,0.00016935,2]
[347658350,1736029832787,-632.14055593,0.00016935,2]
[347658352,1736029832796,-632.14055593,0.00016935,2]
[347658354,1736029832806,-632.14055593,0.00016935,2]
[347658356,1736029832815,-632.14055593,0.00016935,2]
[347658358,1736029832826,-632.14055593,0.00016935,2]
[347658360,1736029832835,-632.14055593,0.00016935,2]
[347658362,1736029832844,-632.14055593,0.00016935,2]
[347658364,1736029832854,-632.14055593,0.00016935,2]
[347658365,1736029832864,-632.14055593,0.00016935,2]
[347658367,1736029832873,-612.69007728,0.00016935,2]
[347658369,1736029832883,-612.69007728,0.00016935,2]
[347658371,1736029832893,-612.69007728,0.00016935,2]
[347658373,1736029832902,-612.69007728,0.00016935,2]
[347658375,1736029832911,-612.69007728,0.00016935,2]
[347658377,1736029832921,-612.69007728,0.00016935,2]
[347658379,1736029832931,-612.69007728,0.00016935,2]
[347658381,1736029832940,-612.69007728,0.00016935,2]
[347658383,1736029832949,-612.69007728,0.00016935,2]
[347658385,1736029832958,-612.69007728,0.00016935,2]
[347658387,1736029832967,-612.69007728,0.00016935,2]
[347658389,1736029832976,-612.69007728,0.00016935,2]
[347658392,1736029832987,-612.69007728,0.00016935,2]
[347658393,1736029832997,-612.69007728,0.00016935,2]
[347658395,1736029833006,-612.69007728,0.00016935,2]
[347658397,1736029833016,-612.69007728,0.00016935,2]
[347658399,1736029833025,-612.69007728,0.00016935,2]
[347658401,1736029833034,-612.69007728,0.00016935,2]
[347658403,1736029833043,-612.69007728,0.00016935,2]
[347658422,1736029833237,-612.69007728,0.00016935,2]
[347658423,1736029833247,-612.69007728,0.00016935,2]
[347658424,1736029833257,-612.69007728,0.00016935,2]
[347658425,1736029833266,-612.69007728,0.00016935,2]
[347658426,1736029833276,-612.69007728,0.00016935,2]
[347658427,1736029833285,-612.69007728,0.00016935,2]
[347658428,1736029833294,-612.69007728,0.00016935,2]
[347658429,1736029833304,-362.099178,0.00016937,2]
[347658430,1736029833313,-362.099178,0.00016937,2]
[347658431,1736029833322,-362.099178,0.00016937,2]
[347658432,1736029833332,-362.099178,0.00016937,2]
[347658433,1736029833341,-362.099178,0.00016937,2]
[347658434,1736029833351,-362.099178,0.00016937,2]
[347658435,1736029833360,-362.099178,0.00016937,2]
[347658436,1736029833370,-362.099178,0.00016937,2]
[347658437,1736029833379,-362.099178,0.00016937,2]
[347658438,1736029833388,-362.099178,0.00016937,2]
[347658439,1736029833398,-362.099178,0.00016937,2]
[347658440,1736029833408,-362.099178,0.00016937,2]
[347658441,1736029833418,-362.099178,0.00016937,2]
[347658442,1736029833427,-362.099178,0.00016937,2]
[347658443,1736029833436,-362.099178,0.00016937,2]
[347658444,1736029833446,-362.099178,0.00016937,2]
[347658445,1736029833455,-323.45171,0.00016937,2]
[347658446,1736029833464,-323.45171,0.00016937,2]
[347658447,1736029833474,-323.45171,0.00016937,2]
[347658448,1736029833484,-323.45171,0.00016937,2]
[347658449,1736029833494,-323.45171,0.00016937,2]
[347658450,1736029833503,-323.45171,0.00016937,2]
[347658451,1736029833513,-323.45171,0.00016937,2]
[347658452,1736029833523,-323.45171,0.00016937,2]
[347658453,1736029833533,-323.45171,0.00016937,2]
[347658454,1736029833544,-323.45171,0.00016937,2]
[347658455,1736029833555,-211.659976,0.00016938,2]
[347658456,1736029833564,-151.0,0.00016938,2]
[347658457,1736029833574,-151.0,0.00016938,2]
[347658458,1736029833583,-151.0,0.00016938,2]
[347658459,1736029833593,-151.0,0.00016938,2]
[347658460,1736029833602,-151.0,0.00016938,2]
[347658461,1736029833612,-151.0,0.00016938,2]
[347658462,1736029833622,-151.0,0.00016938,2]
[347658463,1736029833631,-151.0,0.00016938,2]
[347658464,1736029833642,-151.0,0.00016938,2]
[347658465,1736029833651,-151.0,0.00016938,2]
[347658466,1736029833662,-151.0,0.00016938,2]
[347658467,1736029833671,-200.379104,0.00016938,2]
[347658468,1736029833682,-984.318046,0.00016938,2]
[347658469,1736029833691,-984.318046,0.00016938,2]
[347658470,1736029833700,-984.318046,0.00016938,2]
[347658471,1736029833710,-984.318046,0.00016938,2]
[347658472,1736029833720,-984.318046,0.00016938,2]
[347658473,1736029833730,-984.318046,0.00016938,2]
[347658474,1736029833740,-984.318046,0.00016938,2]
[347658475,1736029833750,-984.318046,0.00016938,2]
[347658476,1736029833759,-984.318046,0.00016938,2]
[347658477,1736029833769,-984.318046,0.00016938,2]
[347658478,1736029833779,-984.318046,0.00016938,2]
[347658479,1736029833789,-984.318046,0.00016938,2]
[347658480,1736029833799,-984.318046,0.00016938,2]
[347658481,1736029833808,-984.318046,0.00016938,2]
[347658482,1736029833818,-984.318046,0.00016938,2]
[347658483,1736029833827,-984.318046,0.00016938,2]
[347658484,1736029833837,-984.318046,0.00016938,2]
[347658485,1736029833847,-984.318046,0.00016938,2]
[347658486,1736029833857,-984.318046,0.00016938,2]
[347658487,1736029833866,-984.318046,0.00016938,2]
[347658488,1736029833876,-151.0,0.00016938,2]
[347658489,1736029833885,-151.0,0.00016938,2]
[347658490,1736029833894,-151.0,0.00016938,2]
[347658491,1736029833904,-151.0,0.00016938,2]
[347658492,1736029833914,-151.0,0.00016938,2]
[347658493,1736029833924,-362.099178,0.00016938,2]
[347658494,1736029833933,-362.099178,0.00016938,2]
[347658495,1736029833943,-362.099178,0.00016938,2]
[347658496,1736029833952,-362.099168,0.00016938,2]
[347658497,1736029833962,-323.45171,0.00016938,2]
[347658498,1736029833971,-323.45171,0.00016938,2]
[347658499,1736029833981,-151.0,0.00016939,2]
[347658500,1736029833990,-288.294626,0.00016939,2]
[347658501,1736029834000,-288.294626,0.00016939,2]
[347658502,1736029834010,-151.0,0.00016939,2]
[347658503,1736029834019,-288.294626,0.00016939,2]
[347658504,1736029834028,-151.0,0.00016939,2]
[347658505,1736029834037,-288.294626,0.00016939,2]
[347658506,1736029834047,-167.940507,0.00016939,2]
[347658507,1736029834056,-288.294626,0.00016939,2]
[347658508,1736029834065,-288.294626,0.00016939,2]
[347658509,1736029834075,-288.294626,0.00016939,2]
[347658510,1736029834084,-288.294626,0.00016939,2]
[347658511,1736029834094,-288.294626,0.00016939,2]
[347658512,1736029834103,-288.294626,0.00016939,2]
[347658513,1736029834113,-288.294626,0.00016939,2]
[347658514,1736029834123,-288.294626,0.00016939,2]
[347658515,1736029834133,-288.294626,0.00016939,2]
[347658516,1736029834142,-288.294626,0.00016939,2]
[347658517,1736029834151,-288.294626,0.00016939,2]
[347658518,1736029834161,-288.294626,0.00016939,2]
[347658519,1736029834171,-288.294626,0.00016939,2]
[347658520,1736029834180,-288.294626,0.00016939,2]
[347658521,1736029834190,-288.294626,0.00016939,2]
[347658522,1736029834199,-288.294626,0.00016939,2]
[347658523,1736029834209,-374.768071,0.00016939,2]
[347658524,1736029834218,-374.768071,0.00016939,2]
[347658525,1736029834227,-374.768071,0.00016939,2]
[347658526,1736029834237,-374.768071,0.00016939,2]
[347658527,1736029834246,-374.768071,0.00016939,2]
[347658528,1736029834255,-374.768071,0.00016939,2]
[347658529,1736029834265,-374.768071,0.00016939,2]
[347658530,1736029834275,-374.768071,0.00016939,2]
[347658531,1736029834284,-374.768071,0.00016939,2]
[347658532,1736029834293,-374.768071,0.00016939,2]
[347658533,1736029834303,-374.768071,0.00016939,2]
[347658534,1736029834313,-374.768071,0.00016939,2]
[347658535,1736029834322,-374.768071,0.00016939,2]
[347658536,1736029834332,-374.768071,0.00016939,2]
[347658537,1736029834341,-374.768071,0.00016939,2]
[347658538,1736029834351,-374.768071,0.00016939,2]
[347658539,1736029834360,-374.768071,0.00016939,2]
[347658540,1736029834370,-374.768071,0.00016939,2]
[347658541,1736029834380,-374.768071,0.00016939,2]
[347658542,1736029834390,-374.768063,0.00016939,2]
[347658543,1736029834400,-151.0,0.00016939,2]
[347658544,1736029834410,-151.0,0.00016939,2]
[347658545,1736029834420,-151.0,0.00016939,2]
[347658546,1736029834429,-151.0,0.00016939,2]
[347658547,1736029834439,-151.0,0.00016939,2]
[347658548,1736029834449,-151.0,0.00016941,2]
[347658549,1736029834458,-151.0,0.00016941,2]
[347658550,1736029834467,-151.0,0.00016941,2]
[347658551,1736029834477,-151.0,0.00016941,2]
[347658552,1736029834486,-151.0,0.00016941,2]
[347658553,1736029834496,-151.0,0.00016941,2]
[347658554,1736029834505,-151.0,0.00016941,2]
[347658555,1736029834515,-151.0,0.00016941,2]
[347658556,1736029834524,-151.0,0.00016941,2]
[347658557,1736029834533,-151.0,0.00016941,2]
[347658558,1736029834542,-151.0,0.00016941,2]
[347658559,1736029834554,-259.105555,0.00016941,2]
[347658560,1736029834564,-530.318994,0.00016941,2]
[347658561,1736029834573,-530.318994,0.00016941,2]
[347658562,1736029834582,-530.318994,0.00016941,2]
[347658563,1736029834592,-530.318994,0.00016941,2]
[347658564,1736029834601,-530.318994,0.00016941,2]
[347658565,1736029834610,-530.318994,0.00016941,2]
[347658566,1736029834620,-530.318994,0.00016941,2]
[347658567,1736029834629,-530.318994,0.00016941,2]
[347658568,1736029834639,-530.318994,0.00016941,2]
[347658569,1736029834648,-530.318994,0.00016941,2]
[347658570,1736029834658,-530.318994,0.00016941,2]
[347658571,1736029834668,-530.318994,0.00016941,2]
[347658572,1736029834677,-530.318994,0.00016941,2]
[347658573,1736029834687,-530.318994,0.00016941,2]
[347658574,1736029834696,-530.318994,0.00016941,2]
[347658575,1736029834705,-530.318994,0.00016941,2]
[347658576,1736029834714,-530.318994,0.00016941,2]
[347658577,1736029834724,-530.318994,0.00016941,2]
[347658578,1736029834733,-530.318994,0.00016941,2]
[347658579,1736029834742,-530.318986,0.00016941,2]
[347658580,1736029834751,-151.0,0.00016941,2]
[347658581,1736029834761,-151.0,0.00016941,2]
[347658582,1736029834770,-151.0,0.00016941,2]
[347658583,1736029834780,-229.724502,0.00016941,2]
[347658584,1736029834789,-151.0,0.00016941,2]
[347658585,1736029834798,-151.0,0.00016941,2]
[347658586,1736029834808,-151.0,0.00016941,2]
[347658587,1736029834817,-151.0,0.00016941,2]
[347658588,1736029834828,-151.0,0.00016941,2]
[347658589,1736029834838,-151.0,0.00016941,2]
[347658590,1736029834848,-151.0,0.00016941,2]
[347658591,1736029834858,-249.741626,0.00016941,2]
[347658592,1736029834869,-151.0,0.00016941,2]
[347658593,1736029834879,-151.0,0.00016941,2]
[347658594,1736029834890,-151.0,0.00016941,2]
[347658595,1736029834900,-151.0,0.00016941,2]
[347658596,1736029834910,-151.0,0.00016941,2]
[347658597,1736029834921,-151.0,0.00016941,2]
[347658598,1736029834931,-151.0,0.00016941,2]
[347658599,1736029834942,-173.556176,0.00016941,2]
[347658600,1736029834953,-24900.0,0.00016942,2]
[347658601,1736029834963,-500.0,0.00016973,2]
[347658602,1736029834974,-228.96500994,0.00016973,2]
[347658603,1736029834984,-170.13008365,0.00016973,2]
[347658604,1736029834994,-500.0,0.00016973,2]
[347658605,1736029835004,-500.0,0.00016973,2]
[347658606,1736029835013,-161.0583903,0.00016973,2]
[347658607,1736029835022,-500.0,0.00016973,2]
[347658608,1736029835032,-152.11631009,0.00016973,2]
[347658609,1736029835042,-500.57639798,0.00016973,2]
[347658610,1736029835051,-500.0,0.00016973,2]
[347658611,1736029835060,-152.0,0.00017007,2]
[347658612,1736029835070,-639.5104054,0.00017046,2]
[347658613,1736029835079,-843.10188816,0.00017378,2]
[347658614,1736029835088,-500.0,0.00017521,2]
[347658615,1736029835098,-1000.0,0.00017521,2]
[347658616,1736029835107,-1000.0,0.00017521,2]
[347658617,1736029835117,-3635.90553884,0.000176,2]
[347658618,1736029835126,-3635.90553879,0.000176,2]
[347658619,1736029835136,-3635.90553879,0.000176,2]
[347658620,1736029835146,-3635.90553879,0.000176,2]
[347658621,1736029835156,-10794.74591837,0.00017655,2]
[347658622,1736029835165,-188.69380008,0.00017674,2]
[347658623,1736029835174,-3635.90553879,0.00017728,2]
[347658624,1736029835185,-151.0,0.00017733,2]
[347658625,1736029835195,-153.697083,0.00017733,2]
[347658626,1736029835205,-500.0,0.00017753,2]
[347658627,1736029835215,-394.0,0.00017812,2]
[347658628,1736029835224,-843.10188816,0.00017919,2]
[347658629,1736029835235,-3635.90553879,0.00017934,2]
[347658630,1736029835247,-151.0,0.00017978,2]
[347658631,1736029835257,-352.7875366,0.00018041,2]
[347658632,1736029835267,-352.7875366,0.00018041,2]
[347658633,1736029835276,-156.4441,0.00018041,2]
[347658634,1736029835285,-500.0,0.00018073,2]
[347658635,1736029835296,-151.0,0.00018073,2]
[347658636,1736029835306,-151.0,0.00018073,2]
[347658637,1736029835317,-151.0,0.00018075,2]
[347658638,1736029835328,-300.530763,0.00018075,2]
[347658639,1736029835337,-151.0,0.00018075,2]
[347658640,1736029835347,-151.0,0.00018077,2]
[347658641,1736029835356,-151.0,0.00018078,2]
[347658642,1736029835366,-151.0,0.00018078,2]
[347658643,1736029835376,-151.0,0.00018078,2]
[347658644,1736029835385,-151.0,0.00018078,2]
[347658645,1736029835394,-151.0,0.00018078,2]
[347658646,1736029835403,-151.0,0.00018078,2]
[347658647,1736029835412,-151.0,0.00018078,2]
[347658648,1736029835422,-151.0,0.00018078,2]
[347658649,1736029835431,-151.0,0.00018078,2]
[347658650,1736029835440,-151.0,0.00018078,2]
[347658651,1736029835449,-151.0,0.00018078,2]
[347658652,1736029835458,-151.0,0.00018078,2]
[347658653,1736029835468,-151.0,0.00018078,2]
[347658654,1736029835477,-151.0,0.00018078,2]
[347658655,1736029835487,-151.0,0.00018078,2]
[347658656,1736029835497,-151.0,0.00018078,2]
[347658657,1736029835507,-151.0,0.00018078,2]
[347658658,1736029835518,-151.0,0.00018078,2]
[347658659,1736029835527,-216.96054,0.00018078,2]
[347658660,1736029835537,-151.0,0.00018079,2]
[347658661,1736029835548,-151.0,0.00018079,2]
[347658662,1736029835561,-190.821087,0.00018079,2]
[347658663,1736029835572,-190.821087,0.00018079,2]
[347658664,1736029835580,-1007.49195803,0.0001808,2]
[347658665,1736029835589,-3635.90553879,0.00018141,2]
[347658666,1736029835599,-153.0,0.00018178,2]
[347658667,1736029835609,-214.4778337,0.00018178,2]
[347658668,1736029835618,-159.7757554,0.00018178,2]
[347658669,1736029835627,-153.6137553,0.00018178,2]
[347658670,1736029835637,-153.0,0.00018178,2]
[347658671,1736029835649,-153.0,0.00018178,2]
[347658672,1736029835660,-153.0,0.00018178,2]
[347658673,1736029835669,-153.0,0.00018178,2]
[347658674,1736029835680,-153.0,0.00018178,2]
[347658675,1736029835689,-153.0,0.00018278,2]
[347658676,1736029835698,-153.0,0.00018278,2]
[347658677,1736029835707,-153.0,0.00018278,2]
[347658678,1736029835716,-153.0,0.00018278,2]
[347658679,1736029835726,-3635.90553879,0.00018348,2]
[347658680,1736029835735,-843.10188816,0.00018459,2]
[347658681,1736029835744,-420.0,0.00018497,2]
[347658682,1736029835753,-188.69380008,0.00018513,2]
[347658683,1736029835764,-795.20819234,0.00018522,2]
[347658684,1736029835773,-1500.0,0.00018522,2]
[347658685,1736029835782,-3635.90553879,0.00018555,2]
[347658686,1736029835791,-153.46,0.000186,2]
[347658687,1736029835799,-492.455,0.00018702,2]
[347658688,1736029835808,-3635.90553879,0.00018762,2]
[347658689,1736029835817,-10075.650195,0.0001879,2]
[347658690,1736029835827,-153.0,0.00018795,2]
[347658691,1736029835836,-3635.90553879,0.00018969,2]
[347658692,1736029835845,-9458.5887179,0.00019,2]
[347658693,1736029835854,-7174.9,0.00019,3]
[347658694,1736029835862,-176.960386,0.00019,2]
[347658695,1736029835872,-151.0,0.00019,2]
[347658696,1736029835883,-151.0,0.00019,2]
[347658697,1736029835893,-176.960386,0.00019,2]
[347658698,1736029835903,-153.0,0.00019,2]
[347658699,1736029835912,-151.0,0.00019,2]
[347658700,1736029835921,-151.0,0.00019,2]
[347658701,1736029835931,-190.821087,0.00019,2]